bitfinex/quotes_ETHUSD_20250215
["timestamp","ask_amount","ask_price","bid_price","bid_amount"]
[1739653456984,1.74207716,2690.8,2690.5,0.73391358]
[1739653459497,4.6244156,2690.8,2690.5,0.73391358]
[1739653461509,0.7908,2690.6,2690.2,8.34]
[1739653461796,0.7908,2690.3,2690.2,8.34]
[1739653461975,4.50785,2690.3,2690.2,8.34]
[1739653463088,0.7908,2690.3,2690.2,8.34]
[1739653463394,4.50785,2690.3,2690.2,8.34]
[1739653463594,5.330333,2690.3,2690.2,8.34]
[1739653466790,10.511133,2690.3,2690.2,8.34]
[1739653467298,3.71738,2690.1,2689.7,0.74302345]
[1739653467466,4.50818,2690.1,2689.7,0.74302345]
[1739653468254,8.22562,2690.1,2689.7,0.74302345]
[1739653468450,3.71768,2689.9,2689.4,3.71821]
[1739653468868,0.7908,2690.0,2689.4,3.71821]
[1739653469152,4.50828,2690.0,2689.4,7.43642]
[1739653469386,4.50828,2690.0,2689.4,3.71821]
[1739653469594,4.50828,2690.0,2689.4,4.30845462]
[1739653469901,3.71764,2689.9,2689.4,4.30843462]
[1739653470196,0.7908,2690.0,2689.5,3.71807]
[1739653471167,0.7908,2690.0,2689.5,4.47644912]
[1739653471494,0.7908,2690.0,2689.6,3.71792]
[1739653472290,0.7908,2690.0,2689.5,5.88668528]
[1739653473795,0.7908,2690.0,2689.5,9.60476528]
[1739653474026,0.7908,2690.0,2689.5,5.88668528]
[1739653474328,3.71761,2689.9,2689.5,0.75837912]
[1739653476109,1.241621,2690.0,2689.5,0.75837912]
[1739653476262,4.50828,2690.0,2689.5,4.47646912]
[1739653476464,2.231,2689.9,2689.5,4.47646912]
[1739653476664,4.50828,2690.0,2689.5,0.75837912]
[1739653477378,4.50828,2690.0,2689.5,4.47651912]
[1739653478314,0.7908,2690.0,2689.5,4.47651912]
[1739653479315,4.50834,2690.0,2689.5,4.47651912]
[1739653481416,4.50834,2690.0,2689.3,5.12858616]
[1739653481720,3.71776,2689.8,2689.3,5.12858616]
[1739653482225,0.7877,2689.7,2689.3,8.84693616]
[1739653482425,0.7877,2689.7,2689.3,9.53475511]
[1739653482827,0.7877,2689.7,2689.3,6.55252112]
[1739653483453,0.7877,2689.7,2689.3,5.86470217]
[1739653484164,4.50566,2689.7,2689.2,4.4925]
[1739653485961,0.7877,2689.7,2689.2,1.53614557]
[1739653486129,0.7877,2689.7,2689.3,3.7184]
[1739653486548,0.7877,2689.7,2689.2,0.76214557]
[1739653486746,4.50559,2689.7,2689.2,0.76214557]
[1739653487702,4.50559,2689.7,2689.2,4.48068557]
[1739653487856,0.8136,2689.6,2689.1,5.12883616]
[1739653488057,0.8136,2689.6,2689.1,3.7186]
[1739653489085,0.8136,2689.6,2689.1,4.46777257]
[1739653489462,4.53173,2689.6,2689.1,3.7186]
[1739653489877,3.71819,2689.5,2689.0,4.50781]
[1739653490045,3.71819,2689.5,2689.0,3.71881]
[1739653490392,0.8136,2689.4,2689.0,3.71881]
[1739653491782,0.8136,2689.4,2689.0,4.47757686]
[1739653492213,0.8136,2689.4,2689.0,0.75876686]
[1739653492413,0.8136,2689.6,2689.2,3.71848]
[1739653494806,4.53162,2689.6,2689.2,3.71848]
[1739653495204,0.8136,2689.6,2689.2,3.71848]
[1739653495711,5.1808,2689.7,2689.2,3.71848]
[1739653495882,5.1808,2689.7,2689.4,3.71828]
[1739653496401,5.1808,2689.7,2689.5,5.12839616]
[1739653496903,5.1808,2689.7,2689.5,3.71816]
[1739653499321,5.1808,2689.7,2689.4,4.540826]
[1739653499605,4.53122,2689.9,2689.4,4.540826]
[1739653499807,4.53122,2689.9,2689.5,0.75650909]
[1739653500407,0.8136,2689.9,2689.5,0.75650909]
[1739653500882,3.71781,2689.8,2689.1,3.71866]
[1739653501084,4.48285,2689.7,2689.1,4.46904001]
[1739653501398,4.48285,2689.7,2689.2,3.71856]
[1739653501914,0.7649,2689.7,2689.2,3.71856]
[1739653502272,0.7649,2689.9,2689.6,3.71791]
[1739653502472,0.7649,2689.9,2689.5,5.12829616]
[1739653502668,5.9457,2690.1,2689.5,1.41023616]
[1739653502876,5.9457,2690.1,2689.7,3.71786]
[1739653503282,5.9457,2690.1,2689.7,3.71781]
[1739653503528,0.7649,2690.4,2689.9,1.41023616]
[1739653503812,0.7649,2690.4,2690.0,3.71743]
[1739653504312,0.7649,2690.4,2690.2,3.71719]
[1739653504509,5.1808,2690.5,2690.2,3.71719]
[1739653504710,5.1808,2690.5,2690.2,3.71709]
[1739653505622,5.1808,2690.5,2690.2,3.71713]
[1739653505791,5.1808,2690.5,2690.3,0.794]
[1739653506117,9.0423856,2690.8,2690.3,0.794]
[1739653506824,9.0423856,2690.8,2690.3,4.51104]
[1739653508619,9.0423856,2690.8,2690.3,0.794]
[1739653509326,5.3260156,2690.8,2690.3,4.51096]
[1739653509498,5.3260156,2690.8,2690.4,3.71687]
[1739653510581,5.3260156,2690.8,2690.5,3.71677]
[1739653511983,0.1452156,2690.8,2690.7,3.7165]
[1739653512183,0.1452156,2690.8,2690.7,4.5047]
[1739653512686,0.1452156,2690.8,2690.7,4.54186037]
[1739653512906,0.1452156,2690.8,2690.7,5.64988164]
[1739653513812,0.1452156,2690.8,2690.7,6.19988164]
[1739653514221,0.1452156,2690.8,2690.7,9.19988164]
[1739653514421,5.9914,2691.9,2691.5,3.71537]
[1739653514824,5.1808,2692.2,2691.5,3.71527]
[1739653514996,5.9914,2692.2,2691.7,3.71503]
[1739653516006,5.1808,2692.2,2691.9,3.71473]
[1739653516205,5.1808,2692.2,2692.0,3.71461]
[1739653516524,5.1808,2692.2,2691.9,3.71473]
[1739653517359,5.1808,2693.0,2692.1,3.71448]
[1739653517558,3.71365,2692.8,2692.2,4.36803023]
[1739653517759,3.71374,2692.7,2692.0,6.53642233]
[1739653517953,7.42761,2692.7,2692.0,6.53642233]
[1739653518117,3.71374,2692.7,2692.0,6.53642233]
[1739653518323,3.71392,2692.6,2692.0,6.53642233]
[1739653518632,3.71402,2692.5,2691.8,8.99437116]
[1739653518838,3.71402,2692.5,2691.8,11.05501521]
[1739653519248,3.71402,2692.5,2691.8,7.34008521]
[1739653519460,3.71402,2692.5,2691.9,3.71483]
[1739653519774,3.71405,2692.5,2691.8,7.34008521]
[1739653520319,3.71405,2692.5,2691.9,3.71477]
[1739653520523,3.71405,2692.5,2692.0,4.82017552]
[1739653521221,3.71405,2692.5,2692.0,1.10548552]
[1739653521426,3.71418,2692.4,2692.0,1.10548552]
[1739653521666,4.51728,2692.4,2691.8,6.58139405]
[1739653523182,4.51728,2692.4,2691.8,2.86654405]
[1739653523471,4.51822,2691.7,2691.6,8.34]
[1739653523677,3.71549,2691.5,2690.9,0.8059]
[1739653523829,7.43102,2691.5,2691.0,0.36276223]
[1739653524031,3.71549,2691.5,2691.0,0.36276223]
[1739653524248,3.7157,2691.3,2691.0,0.36276223]
[1739653524446,3.7157,2691.3,2690.7,3.98048]
[1739653524650,3.71582,2691.2,2690.6,12.85946]
[1739653524847,4.51892,2691.2,2690.6,13.58757295]
[1739653525248,4.51892,2691.2,2690.6,12.85946]
[1739653525799,0.8031,2691.2,2690.7,1.59451823]
[1739653526391,4.519,2691.2,2690.7,1.59451823]
[1739653526543,0.8031,2691.2,2690.7,1.59451823]
[1739653526746,0.8031,2691.2,2690.7,5.31100823]
[1739653527757,0.8031,2691.2,2690.7,1.59451823]
[1739653529693,4.51899,2691.2,2690.7,1.59451823]
[1739653530390,4.51898,2691.2,2690.7,5.31101823]
[1739653530591,4.51898,2691.2,2690.8,1.44539582]
[1739653530797,3.71599,2691.1,2690.6,9.1429]
[1739653531107,3.71609,2691.0,2690.6,9.1429]
[1739653531420,3.71599,2691.1,2690.6,9.1429]
[1739653532005,3.71599,2691.1,2690.6,12.8595]
[1739653532314,3.7154,2691.5,2690.6,9.1429]
[1739653532465,5.1808,2691.6,2691.0,0.8272]
[1739653532666,5.1808,2691.6,2691.1,3.71585]
[1739653533094,5.1808,2691.6,2691.3,3.71558]
[1739653533316,0.7533,2691.9,2691.4,3.71542]
[1739653533665,0.7533,2691.9,2691.5,3.71538]
[1739653535702,3.71461,2692.1,2691.5,3.7153]
[1739653535903,3.71461,2692.1,2691.5,4.5425]
[1739653536204,3.71461,2692.1,2691.5,5.37202423]
[1739653536412,0.7533,2692.2,2691.6,3.75241068]
[1739653536713,0.7533,2692.2,2691.8,3.71498]
[1739653537063,5.1808,2692.3,2691.9,3.71481]
[1739653537305,5.1808,2692.3,2692.0,0.371481]
[1739653537517,5.1808,2692.3,2691.8,3.71497]
[1739653537660,5.1808,2692.3,2691.7,3.71507]
[1739653537865,5.1808,2692.3,2691.5,4.54481423]
[1739653537866,4.46781,2692.2,2691.5,4.54481423]
[1739653538065,3.71465,2692.1,2691.5,4.54481423]
[1739653539070,3.71465,2692.1,2691.3,4.54282]
[1739653539286,3.71492,2691.9,2691.3,4.54279]
[1739653539479,3.71492,2691.9,2691.3,4.54277]
[1739653540468,3.71492,2691.9,2691.4,3.71552]
[1739653540825,3.71465,2692.1,2691.5,3.71529]
[1739653541111,5.1808,2692.3,2692.1,3.71456]
[1739653542201,3.71369,2692.8,2692.2,3.71438]
[1739653542432,4.54273,2692.9,2692.3,3.71429]
[1739653542707,4.54273,2692.9,2692.5,3.71402]
[1739653542708,0.8292,2692.9,2692.5,3.71402]
[1739653543128,4.54275,2692.9,2692.3,3.71421]
[1739653543329,3.71327,2693.1,2692.4,4.846091]
[1739653543495,3.71305,2693.2,2692.5,3.71396]
[1739653543696,3.71335,2693.0,2692.4,0.7606]
[1739653544029,3.71335,2693.0,2692.3,3.97918]
[1739653544406,3.7135,2692.9,2692.3,3.97918]
[1739653544731,3.7135,2692.9,2692.3,3.71418]
[1739653544892,0.8292,2692.6,2692.1,3.97951]
[1739653545093,8.71053,2692.9,2692.2,3.71441]
[1739653545295,4.5427,2692.9,2692.2,3.71441]
[1739653545730,0.8292,2693.2,2692.7,3.71371]
[1739653545938,4.54228,2693.2,2692.5,3.71392]
[1739653546229,4.54228,2693.2,2692.5,3.714]
[1739653546414,3.71334,2693.0,2692.4,3.7141]
[1739653546588,3.71334,2693.0,2692.4,4.756929]
[1739653547403,3.71334,2693.0,2692.4,4.756979]
[1739653547737,3.71356,2692.9,2692.3,3.71419]
[1739653547928,3.71368,2692.8,2692.1,4.47511]
[1739653548122,3.71368,2692.8,2692.0,0.75651504]
[1739653548328,3.71401,2692.6,2691.9,12.80279]
[1739653548735,4.49673,2692.4,2691.7,3.71507]
[1739653548892,4.49673,2692.4,2691.8,0.4838599]
[1739653549096,3.71453,2692.2,2691.6,0.371529]
[1739653549998,3.71453,2692.2,2691.6,4.086779]
[1739653550839,3.71453,2692.2,2691.6,0.371529]
[1739653551045,3.71472,2692.0,2691.6,0.371529]
[1739653551541,3.71453,2692.2,2691.6,0.371529]
[1739653551741,3.71453,2692.2,2691.7,1.6138099]
[1739653552112,3.71453,2692.2,2691.7,5.3289199]
[1739653552513,4.49673,2692.4,2691.8,3.71495]
[1739653552946,0.7825,2692.4,2692.0,3.71459]
[1739653553097,4.49628,2692.7,2692.1,3.71447]
[1739653553304,4.49628,2692.7,2692.2,4.085857]
[1739653553811,4.49628,2692.7,2692.2,0.371447]
[1739653554222,0.7825,2693.2,2692.5,3.71399]
[1739653554439,0.7825,2693.2,2692.7,3.71373]
[1739653555470,4.49564,2693.2,2692.6,3.75100477]
[1739653555839,3.71325,2693.1,2692.5,3.71399]
[1739653556052,3.71325,2693.1,2692.6,3.71385]
[1739653556565,0.7825,2693.2,2692.3,3.71419]
[1739653556734,3.71392,2692.6,2692.1,3.71447]
[1739653556935,3.71392,2692.6,2692.0,0.268]
[1739653557136,3.71417,2692.4,2692.0,0.666277]
[1739653557857,3.71417,2692.4,2691.7,5.3288599]
[1739653558106,3.71447,2692.2,2691.7,5.3288599]
[1739653558261,0.7825,2692.3,2691.7,5.3288599]
[1739653558844,0.7825,2692.3,2691.7,1.6138099]
[1739653559059,3.7146,2692.1,2691.7,1.6138099]
[1739653559237,0.7825,2692.3,2691.7,1.6138099]
[1739653559446,4.49679,2692.3,2691.8,0.23658099]
[1739653560069,8.2112,2692.3,2691.8,0.23658099]
[1739653560242,4.49679,2692.3,2691.8,3.95155099]
[1739653560834,4.49679,2692.3,2691.8,0.23658099]
[1739653561264,3.71447,2692.2,2691.8,0.23658099]
[1739653561573,3.71458,2692.1,2691.8,0.23658099]
[1739653561967,3.71458,2692.1,2691.6,4.46725]
[1739653563278,3.71447,2692.2,2691.6,4.46725]
[1739653563875,3.71458,2692.1,2691.6,4.46725]
[1739653564072,8.21122,2692.3,2691.6,8.1824]
[1739653564388,3.71444,2692.2,2691.6,8.1824]
[1739653564593,3.71444,2692.2,2691.7,1.65184]
[1739653565080,3.71444,2692.2,2691.7,5.36695]
[1739653565790,8.21119,2692.3,2691.7,5.36695]
[1739653565940,3.71453,2692.2,2691.7,5.36695]
[1739653567388,4.49679,2692.3,2691.7,5.36695]
[1739653567576,8.21116,2692.3,2691.8,0.611895]
[1739653567776,4.49679,2692.3,2691.8,0.611895]
[1739653567976,8.21117,2692.3,2691.8,0.611895]
[1739653568278,4.49679,2692.3,2691.8,0.611895]
[1739653568465,3.71444,2692.2,2691.8,0.611895]
[1739653569290,3.71443,2692.2,2691.8,0.611895]
[1739653569896,3.71459,2692.1,2691.8,0.611895]
[1739653572892,3.71477,2692.0,2691.6,0.752]
[1739653573770,3.71459,2692.1,2691.6,0.752]
[1739653574103,3.71459,2692.1,2691.6,4.46724]
[1739653574272,7.42925,2692.1,2691.6,0.752]
[1739653575092,3.71474,2692.0,2691.6,0.752]
[1739653575273,3.71474,2692.0,2691.7,0.446731]
[1739653577204,3.71449,2692.2,2691.7,0.446731]
[1739653577591,3.71464,2692.1,2691.7,0.446731]
[1739653579795,3.71466,2692.1,2691.7,0.446731]
[1739653586901,7.42936,2692.1,2691.7,0.446731]
[1739653587103,3.71466,2692.1,2691.7,0.446731]
[1739653587298,3.71465,2692.1,2691.7,0.446731]
[1739653587707,7.4293,2692.1,2691.7,0.446731]
[1739653588092,3.71465,2692.1,2691.7,0.446731]
[1739653588393,7.4293,2692.1,2691.7,0.446731]
[1739653588906,3.71481,2692.0,2691.7,0.446731]
[1739653589875,3.71465,2692.1,2691.7,0.446731]
[1739653590081,7.42934,2692.1,2691.7,0.446731]
[1739653591505,2.231,2692.0,2691.7,0.446731]
[1739653591668,3.71465,2692.1,2691.7,0.446731]
[1739653591889,3.71477,2692.0,2691.7,0.446731]
[1739653594232,7.42933,2692.1,2691.7,0.446731]
[1739653594412,3.71465,2692.1,2691.7,0.446731]
[1739653594592,3.71477,2692.0,2691.7,0.446731]
[1739653596189,3.71477,2692.0,2691.6,0.752]
[1739653601331,3.710395,2692.0,2691.6,0.752]
[1739653601627,5.1808,2692.2,2691.6,0.752]
[1739653601827,3.71368,2692.8,2691.9,0.7572]
[1739653601991,3.71368,2692.8,2692.2,3.71441]
[1739653601992,3.71375,2692.7,2692.2,3.71441]
[1739653602196,3.71375,2692.7,2692.1,4.47173]
[1739653602730,3.71368,2692.8,2692.2,3.71439]
[1739653602919,3.71377,2692.7,2692.2,3.71439]
[1739653606419,3.71368,2692.8,2692.1,1.49383168]
[1739653606609,3.7139,2692.6,2692.1,1.49383168]
[1739653606811,4.51747,2692.4,2692.0,0.35789223]
[1739653607019,3.71437,2692.3,2691.8,0.7702]
[1739653607745,3.71437,2692.3,2691.8,4.48518]
[1739653608045,4.51747,2692.4,2691.8,4.48518]
[1739653608352,4.51747,2692.4,2691.8,4.48506]
[1739653608553,4.51747,2692.4,2691.8,1.53105543]
[1739653608554,3.71438,2692.3,2691.8,1.53105543]
[1739653608854,3.71438,2692.3,2691.9,0.448506]
[1739653609039,4.51747,2692.4,2691.9,0.448506]
[1739653609352,3.71432,2692.3,2691.9,0.448506]
[1739653609654,8.23172,2692.4,2691.9,0.448506]
[1739653609826,3.7143,2692.3,2691.9,0.448506]
[1739653610358,3.71457,2692.1,2691.9,0.448506]
[1739653610520,3.71457,2692.1,2691.8,1.53105543]
[1739653610840,3.71457,2692.1,2691.8,0.7702]
[1739653611826,3.71455,2692.2,2691.8,0.7702]
[1739653612710,3.7146,2692.1,2691.8,0.7702]
[1739653613950,3.71484,2691.9,2691.8,0.7702]
[1739653614153,3.71484,2691.9,2691.7,0.74937397]
[1739653619152,0.371484,2691.8,2691.4,0.7969]
[1739653619358,0.85390637,2692.0,2691.1,0.7969]
[1739653619359,3.71551,2691.5,2691.1,0.7969]
[1739653619658,3.71526,2691.6,2691.1,4.51279]
[1739653619956,7.43061,2691.6,2691.1,0.7969]
[1739653620115,7.43061,2691.6,2691.0,8.337]
[1739653620116,3.7156,2691.4,2691.0,8.337]
[1739653620451,3.71595,2691.1,2691.0,8.337]
[1739653621331,3.7158,2691.3,2691.0,8.337]
[1739653621736,3.71579,2691.3,2691.0,8.337]
[1739653622022,3.71595,2691.1,2691.0,8.337]
[1739653622656,4.53315,2691.1,2691.0,8.337]
[1739653627293,9.71395,2691.1,2691.0,8.337]
[1739653628494,8.998,2691.1,2690.3,0.7853]
[1739653628705,3.71717,2690.3,2689.8,0.7853]
[1739653628863,3.71716,2690.3,2689.9,0.450307]
[1739653629062,7.43433,2690.3,2689.9,0.450307]
[1739653629278,3.8172,2690.2,2689.2,4.50379]
[1739653629507,3.71762,2689.9,2689.2,4.50376]
[1739653630299,3.71762,2689.9,2689.4,3.71827]
[1739653630592,3.71762,2689.9,2689.2,4.50376]
[1739653630794,3.71762,2689.9,2689.4,3.7183]
[1739653630996,8.89817,2690.1,2689.5,0.37183]
[1739653631204,3.71761,2689.9,2689.5,0.37183]
[1739653631662,3.71761,2689.9,2689.3,4.46293599]
[1739653631863,8.89819,2690.1,2689.4,3.71821]
[1739653632062,3.71763,2689.9,2689.3,4.46293599]
[1739653632263,8.89843,2689.9,2689.3,0.74450599]
[1739653632465,3.71789,2689.7,2689.3,0.74450599]
[1739653632673,3.71789,2689.7,2689.4,0.5248346]
[1739653632869,8.89843,2689.9,2689.4,0.5248346]
[1739653632870,5.1808,2689.9,2689.4,4.2431146]
[1739653633069,5.1808,2689.9,2689.6,0.7853]
[1739653633301,5.1808,2689.9,2689.6,4.5033]
[1739653634425,5.1808,2689.9,2689.6,0.7853]
[1739653634820,5.1808,2689.9,2689.6,1.28813546]
[1739653637246,8.89849,2689.9,2689.6,1.28813546]
[1739653637419,8.89849,2689.9,2689.6,0.7853]
[1739653637620,0.03790637,2689.8,2689.4,0.7757]
[1739653637801,3.71798,2689.7,2689.3,0.74450599]
[1739653638340,7.43595,2689.7,2689.3,0.74450599]
[1739653638930,3.71797,2689.7,2689.3,0.74450599]
[1739653639151,0.7801,2689.8,2689.3,4.98675059]
[1739653639440,8.89847,2689.9,2689.3,4.98675059]
[1739653639802,3.71775,2689.8,2689.3,4.98675059]
[1739653641038,3.71775,2689.8,2689.3,1.26839059]
[1739653642043,8.89855,2689.8,2689.3,1.26839059]
[1739653642355,3.71789,2689.7,2689.3,1.26839059]
[1739653642509,5.1808,2689.8,2689.6,0.8043]
[1739653642915,5.1808,2689.8,2689.6,4.52225]
[1739653643097,5.1808,2689.8,2689.6,0.8043]
[1739653644603,5.1808,2689.8,2689.6,4.52229]
[1739653644839,5.1808,2689.8,2689.6,1.64879491]
[1739653645044,5.1808,2689.8,2689.6,5.36674491]
[1739653645241,5.1808,2689.8,2689.6,5.36671491]
[1739653645747,5.1808,2689.8,2689.7,3.71788]
[1739653649695,5.1808,2689.8,2689.7,4.52218]
[1739653649859,5.1808,2690.5,2690.2,0.8043]
[1739653650059,5.1808,2690.5,2690.3,3.71696]
[1739653650807,5.1808,2690.5,2690.2,0.8043]
[1739653651661,5.1808,2690.5,2690.2,4.52146]
[1739653652002,5.1808,2690.5,2690.2,0.8043]
[1739653653388,5.1808,2690.5,2690.1,3.71723]
[1739653654697,8.89758,2690.5,2690.0,4.53522]
[1739653654898,0.7881,2690.4,2690.0,5.360493]
[1739653655262,0.7881,2690.4,2690.1,0.72772431]
[1739653655997,3.71706,2690.3,2689.8,0.8178]
[1739653656182,3.71706,2690.3,2689.7,4.62622949]
[1739653656183,3.75509637,2690.2,2689.7,3.71777]
[1739653656376,0.7881,2690.0,2689.5,4.53584]
[1739653656692,9.68637,2690.0,2689.5,5.361265]
[1739653657297,5.9689,2690.0,2689.5,5.361265]
[1739653657596,5.1808,2690.0,2689.9,0.74661272]
[1739653673054,5.1808,2690.0,2689.9,5.26652272]
[1739653677076,5.1808,2690.0,2689.9,1.54891272]
[1739653677574,5.1808,2690.0,2689.9,5.26652272]
[1739653677778,4.48886,2690.5,2689.9,6.16493899]
[1739653678137,3.71693,2690.4,2689.9,4.46422272]
[1739653679373,3.71693,2690.4,2689.9,0.74661272]
[1739653680090,3.71693,2690.4,2689.9,4.46414272]
[1739653681391,3.71693,2690.4,2690.0,0.7954]
[1739653681695,3.71693,2690.4,2690.0,1.69311827]
[1739653681989,3.71707,2690.3,2690.0,1.69311827]
[1739653682193,3.71707,2690.3,2690.0,0.7954]
[1739653682396,3.71693,2690.4,2690.0,0.7954]
[1739653683193,0.772,2690.5,2689.9,0.74661272]
[1739653683414,0.7698,2690.1,2689.4,0.7954]
[1739653683562,3.71767,2689.9,2689.4,0.7954]
[1739653683897,3.71767,2689.9,2689.4,4.965074]
[1739653684096,3.71767,2689.9,2689.4,5.72524812]
[1739653684300,3.71767,2689.9,2689.4,4.965074]
[1739653684722,5.1808,2690.0,2689.5,3.71816]
[1739653685062,8.89828,2690.0,2689.5,3.71816]
[1739653686369,8.89828,2690.0,2689.5,3.71808]
[1739653686570,8.89828,2690.0,2689.5,4.29372161]
[1739653687681,5.1808,2690.0,2689.6,3.71801]
[1739653688007,5.1808,2690.0,2689.8,3.71767]
[1739653688213,5.1808,2690.0,2689.9,4.51301]
[1739653689297,4.48626,2690.8,2690.0,0.7954]
[1739653689298,5.1808,2690.5,2690.0,0.7954]
[1739653689473,5.1808,2690.5,2690.1,3.71723]
[1739653689687,5.1808,2690.5,2690.1,8.257506]
[1739653689896,5.1808,2690.5,2690.1,4.540246]
[1739653690101,5.1808,2690.5,2690.1,4.57741556]
[1739653690305,5.1808,2690.5,2690.1,4.540246]
[1739653690802,5.1808,2690.5,2690.1,0.823016]
[1739653691714,5.1808,2690.5,2690.1,4.540306]
[1739653692209,5.1808,2690.5,2690.3,0.7954]
[1739653692730,5.1808,2690.5,2690.3,4.51236]
[1739653692883,5.1808,2690.5,2690.3,4.51244]
[1739653693484,5.1808,2690.5,2690.3,0.7954]
[1739653693894,5.1808,2690.5,2690.3,4.51245]
[1739653694097,5.1808,2690.5,2690.3,5.5437951]
[1739653695117,5.1808,2690.5,2690.3,1.8267451]
[1739653698626,5.1808,2690.9,2690.3,1.8267451]
[1739653698830,5.1808,2690.9,2690.3,0.7954]
[1739653699004,5.1808,2690.9,2690.6,0.7682]
[1739653705015,5.1808,2690.9,2690.6,4.48476]
[1739653705317,5.1808,2690.9,2690.8,3.71636]
[1739653705524,5.1808,2691.1,2690.7,7.43282]
[1739653705859,5.1808,2691.1,2690.8,3.71634]
[1739653707053,5.1808,2691.1,2690.7,0.820102]
[1739653707361,5.1808,2691.1,2690.7,4.536572]
[1739653707651,5.1808,2691.1,2690.7,5.29387404]
[1739653709351,5.1808,2691.1,2690.7,9.01026404]
[1739653709652,5.1808,2691.1,2690.7,5.29379404]
[1739653709811,5.1808,2691.1,2690.8,0.6433591]
[1739653710017,5.1808,2691.3,2691.0,3.71608]
[1739653710315,5.1808,2691.3,2691.0,4.48428]
[1739653710516,5.1808,2691.3,2691.0,4.4842]
[1739653710971,5.1808,2691.3,2691.0,8.20021]
[1739653711176,5.1808,2691.3,2691.1,3.71592]
[1739653711353,5.1808,2691.3,2691.1,0.820012]
[1739653711519,5.1808,2691.3,2691.1,4.535932]
[1739653712477,5.1808,2691.3,2691.0,0.7682]
[1739653712770,5.1808,2691.3,2691.0,4.48426]
[1739653714740,5.1808,2691.3,2691.0,4.48421]
[1739653715155,5.1808,2691.3,2691.0,0.7682]
[1739653715360,0.795,2691.2,2690.8,3.71627]
[1739653715674,4.51081,2691.2,2690.8,4.6404632]
[1739653716166,0.795,2691.2,2690.7,0.75730204]
[1739653716372,0.795,2691.2,2690.7,4.47378204]
[1739653716373,4.51082,2691.2,2690.7,4.47378204]
[1739653716871,5.1808,2691.3,2691.0,3.71605]
[1739653717047,5.1808,2691.3,2691.0,4.50385]
[1739653718368,5.1808,2691.3,2691.0,0.7878]
[1739653720475,5.1808,2691.3,2691.0,1.42873967]
[1739653720767,5.1808,2691.3,2691.0,5.14479967]
[1739653720969,5.1808,2691.3,2691.1,3.7159]
[1739653721161,5.1808,2691.3,2691.0,5.14473967]
[1739653721341,5.1808,2691.3,2691.0,8.86074967]
[1739653722559,5.1808,2691.3,2691.1,3.71593]
[1739653722873,5.1808,2691.3,2691.0,8.86073967]
[1739653723051,5.1808,2691.3,2691.1,3.71593]
[1739653724373,5.1808,2691.3,2691.1,4.60199697]
[1739653725276,5.1808,2691.5,2691.1,4.60199697]
[1739653725474,5.1808,2691.5,2691.1,4.63915197]
[1739653726677,5.1808,2691.5,2691.1,4.60199697]
[1739653726855,5.1808,2691.5,2691.1,4.63915207]
[1739653729180,5.1808,2691.5,2691.1,4.60199697]
[1739653729372,5.1808,2691.5,2691.1,0.88606697]
[1739653729578,8.89621,2691.5,2691.1,0.88606697]
[1739653729740,5.1808,2691.5,2691.0,8.21981]
[1739653729944,5.1808,2691.5,2691.0,4.5038]
[1739653730176,5.1808,2691.5,2691.1,3.71594]
[1739653731877,5.1808,2691.5,2691.0,8.21979]
[1739653732377,5.1808,2691.5,2691.0,4.50379]
[1739653732548,8.89623,2691.5,2691.0,4.50379]
[1739653732748,8.89623,2691.5,2691.0,8.2198]
[1739653732950,8.89623,2691.5,2691.0,4.50379]
[1739653733381,5.1808,2691.5,2691.0,4.50379]
[1739653733583,5.1808,2691.5,2691.1,3.71591]
[1739653733881,0.8114,2691.4,2691.1,3.71591]
[1739653735898,0.8114,2691.4,2691.2,3.71579]
[1739653736078,5.1808,2691.5,2691.2,3.71579]
[1739653737782,0.8114,2691.6,2691.3,3.71555]
[1739653738100,4.52642,2691.8,2691.3,3.71555]
[1739653739346,0.8114,2691.8,2691.2,4.54146352]
[1739653739595,0.8114,2691.8,2691.4,3.71545]
[1739653741119,0.8114,2691.8,2691.5,0.8131]
[1739653741396,9.68912,2692.0,2691.6,0.452855]
[1739653741598,9.68912,2692.0,2691.5,4.56557109]
[1739653741785,9.68912,2692.0,2691.5,4.52842]
[1739653741987,9.68912,2692.0,2691.5,0.8131]
[1739653742184,5.9744,2692.0,2691.5,0.8131]
[1739653742400,9.68911,2692.0,2691.5,4.52846]
[1739653742702,9.68911,2692.0,2691.6,0.824389]
[1739653742866,13.40389,2692.0,2691.6,0.824389]
[1739653743399,9.68911,2692.0,2691.6,0.824389]
[1739653744176,3.71486,2691.9,2691.6,0.824389]
[1739653745516,5.9744,2692.0,2691.6,0.824389]
[1739653745717,9.68911,2692.0,2691.5,4.5284]
[1739653746335,3.71488,2691.9,2691.5,0.8131]
[1739653747126,3.71505,2691.8,2691.3,4.52869]
[1739653747324,0.7936,2691.7,2691.2,0.7251202]
[1739653747510,4.5088,2691.7,2691.1,3.7159]
[1739653747713,4.5088,2691.7,2691.1,4.540413]
[1739653748721,4.5088,2691.7,2691.1,8.256293]
[1739653749024,9.6896,2691.7,2691.1,8.256263]
[1739653749425,9.6896,2691.7,2691.2,3.71574]
[1739653749718,5.9744,2691.7,2691.2,3.71574]
[1739653749923,5.9744,2691.7,2691.3,0.8256123]
[1739653750280,3.71527,2691.6,2691.1,3.71587]
[1739653750483,5.9744,2691.7,2691.3,3.71567]
[1739653752123,9.68956,2691.7,2691.2,3.71579]
[1739653752428,3.71528,2691.6,2691.1,7.43174]
[1739653753012,5.9744,2691.7,2691.1,3.71587]
[1739653753192,9.6896,2691.7,2691.2,0.40874207]
[1739653753396,9.6896,2691.7,2691.2,0.371587]
[1739653753726,5.9744,2691.7,2691.2,4.087367]